bitfinex/quotes_ETHUSD_20240607
["timestamp","ask_amount","ask_price","bid_price","bid_amount"]
[1717746456267,2.6193,3817.9,3817.8,4.00994993]
[1717746458605,2.6193,3817.9,3817.8,3.1863935]
[1717746459488,2.6193,3817.9,3817.8,4.28291414]
[1717746464870,2.6193,3817.9,3817.8,4.22091414]
[1717746468213,4.979,3817.9,3817.8,4.22091414]
[1717746468408,4.979,3817.9,3817.8,3.94921222]
[1717746468823,4.979,3817.9,3817.8,1.30361292]
[1717746468979,5.4769,3817.9,3817.8,1.30361292]
[1717746469314,5.4769,3817.9,3817.8,3.949318]
[1717746470025,5.4769,3817.9,3817.8,1.30361292]
[1717746470697,6.0269,3817.9,3817.8,1.30361292]
[1717746471419,6.59315785,3817.9,3817.8,3.94935891]
[1717746471802,6.59315785,3817.9,3817.8,1.30361292]
[1717746472931,6.59315785,3817.9,3817.8,1.85355867]
[1717746474927,6.59315785,3817.9,3817.8,1.30361292]
[1717746475308,6.59315785,3817.9,3817.8,1.85355867]
[1717746475849,7.37315785,3817.9,3817.8,1.30361292]
[1717746476053,8.12315785,3817.9,3817.8,1.30361292]
[1717746476597,8.12315785,3817.9,3817.6,0.54994575]
[1717746476598,2.61937,3817.7,3817.6,0.54994575]
[1717746476751,3.97623278,3817.7,3817.6,1.91578105]
[1717746477105,4.54256159,3817.7,3817.6,1.91578105]
[1717746477511,6.94236159,3817.7,3817.6,1.91578105]
[1717746477939,6.94236159,3817.7,3817.6,1.3658353]
[1717746478348,6.94236159,3817.7,3817.6,1.91578105]
[1717746479324,7.72236159,3817.7,3817.6,1.3658353]
[1717746479657,8.47236159,3817.7,3817.6,1.3658353]
[1717746480523,8.47236159,3817.7,3817.4,0.54994575]
[1717746480723,2.61951,3817.5,3817.4,0.54994575]
[1717746481022,3.16951,3817.5,3817.4,1.91583498]
[1717746482327,3.16951,3817.5,3817.4,1.36588923]
[1717746484370,3.16951,3817.5,3817.4,1.36425832]
[1717746486054,3.16951,3817.5,3817.4,1.38718042]
[1717746486361,7.94877911,3817.5,3817.4,0.0229221]
[1717746486672,7.73386495,3817.5,3817.4,0.0229221]
[1717746486983,6.95386495,3817.5,3817.2,0.54994575]
[1717746487139,2.61965,3817.3,3817.2,0.54994575]
[1717746487479,3.16965,3817.3,3817.2,0.54994575]
[1717746488434,3.16965,3817.3,3817.1,0.54994575]
[1717746488635,0.55,3817.2,3817.1,0.54994575]
[1717746488943,2.61978,3817.1,3817.0,0.82482192]
[1717746489154,2.61978,3817.1,3817.0,2.64603239]
[1717746489364,3.16978,3817.1,3817.0,2.64603239]
[1717746490489,3.16978,3817.1,3816.9,0.82482192]
[1717746492918,0.55,3817.0,3816.9,0.82482192]
[1717746493098,0.55,3817.0,3816.9,2.64604603]
[1717746494423,0.55,3817.0,3816.9,4.01195731]
[1717746494711,0.55,3817.0,3816.9,1.36591128]
[1717746494919,0.55,3817.0,3816.9,4.01193977]
[1717746495575,2.61978,3817.1,3816.9,4.01193977]
[1717746495914,2.61978,3817.1,3817.0,1.36591128]
[1717746496100,2.61978,3817.1,3817.0,4.01185055]
[1717746496305,2.61978,3817.1,3817.0,4.01071311]
[1717746497393,2.61978,3817.1,3817.0,3.18702863]
[1717746498551,2.61978,3817.1,3817.0,4.01074492]
[1717746499309,2.61978,3817.1,3817.0,3.18702863]
[1717746499641,2.61978,3817.1,3817.0,3.21061641]
[1717746501450,2.61978,3817.1,3817.0,4.03437745]
[1717746502118,2.61978,3817.1,3817.0,3.21061641]
[1717746502318,2.61978,3817.1,3817.0,4.03444531]
[1717746502645,2.61978,3817.1,3817.0,1.38949906]
[1717746502851,3.16978,3817.1,3817.0,1.38949906]
[1717746503603,3.16978,3817.1,3817.0,1.9387448]
[1717746506020,3.16978,3817.1,3817.0,1.38949906]
[1717746509319,3.16978,3817.1,3817.0,1.38952949]
[1717746509918,3.16978,3817.1,3817.0,1.93896418]
[1717746510352,3.16978,3817.1,3817.0,1.38952949]
[1717746510854,3.16978,3817.1,3817.0,0.02358778]
[1717746511164,3.16978,3817.1,3817.0,1.3659609]
[1717746511325,3.16978,3817.1,3817.0,1.38953297]
[1717746511853,3.16978,3817.1,3817.0,4.03456229]
[1717746513252,3.16978,3817.1,3817.0,3.21073339]
[1717746513433,3.16978,3817.1,3817.0,4.03526952]
[1717746514035,3.16978,3817.1,3817.0,2.66930862]
[1717746514251,3.16978,3817.1,3817.0,4.03526752]
[1717746514460,3.16978,3817.1,3817.0,3.21073139]
[1717746516849,3.16978,3817.1,3817.0,4.30725203]
[1717746517461,3.16978,3817.1,3817.0,3.21073139]
[1717746517829,3.16978,3817.1,3817.0,4.31061652]
[1717746518438,2.61954,3817.5,3817.0,3.99073139]
[1717746518643,0.75,3817.6,3817.2,0.78]
[1717746518860,0.56637686,3817.7,3817.5,1.37427796]
[1717746519174,0.56637686,3817.7,3817.6,3.18715932]
[1717746519341,7.37,3817.8,3817.6,3.21072876]
[1717746519542,7.37,3817.8,3817.7,4.28680296]
[1717746519731,7.93624096,3817.8,3817.7,4.28680296]
[1717746519927,7.93624096,3817.8,3817.7,4.28646166]
[1717746520133,8.48624096,3817.8,3817.7,4.3100311]
[1717746520330,7.92,3817.8,3817.7,4.3100311]
[1717746520667,7.37,3817.8,3817.7,4.3100311]
[1717746520830,7.37,3817.8,3817.7,3.21038746]
[1717746521029,7.37,3817.8,3817.7,4.30983873]
[1717746521252,7.37,3817.8,3817.7,3.21038746]
[1717746521459,7.37,3817.8,3817.7,4.30961285]
[1717746523582,7.37,3817.8,3817.7,3.21038746]
[1717746524725,2.61926,3817.9,3817.7,3.21038746]
[1717746525238,2.61926,3817.9,3817.8,4.0107683]
[1717746525721,2.61926,3817.9,3817.8,4.03420214]
[1717746527338,2.61926,3817.9,3817.8,1.38902356]
[1717746531690,2.61926,3817.9,3817.8,1.93794056]
[1717746536925,2.61897,3818.3,3817.8,1.93794056]
[1717746537129,0.55,3818.2,3817.9,2.14558972]
[1717746537332,0.55,3818.2,3818.1,0.548917]
[1717746537497,0.55,3818.2,3818.1,1.91450672]
[1717746537702,0.55,3818.2,3818.1,1.93777012]
[1717746539417,0.55,3818.2,3818.1,1.38885312]
[1717746545047,2.61897,3818.3,3818.1,1.38885312]
[1717746545246,2.61897,3818.3,3818.2,1.36558972]
[1717746545469,3.16897,3818.3,3818.2,1.36558972]
[1717746545668,2.61897,3818.3,3818.2,1.38882692]
[1717746546171,2.61897,3818.3,3818.2,1.93774392]
[1717746546347,2.61897,3818.3,3818.2,4.03324587]
[1717746546857,7.37,3818.6,3818.2,4.79000867]
[1717746547058,0.55,3818.5,3818.4,0.54824072]
[1717746547253,0.55,3818.5,3818.4,1.91383044]
[1717746547561,0.55,3818.5,3818.4,1.36558972]
[1717746547955,2.61889,3818.4,3818.2,0.78]
[1717746548661,2.61889,3818.4,3818.1,0.54824072]
[1717746548856,2.61889,3818.4,3818.2,1.36544269]
[1717746549079,2.61889,3818.4,3818.0,1.32824072]
[1717746549248,2.61889,3818.4,3818.1,1.36545451]
[1717746549463,2.61889,3818.4,3818.2,1.36545451]
[1717746549773,2.61889,3818.4,3818.0,1.32824072]
[1717746549954,2.61889,3818.4,3818.1,1.9137048]
[1717746550160,2.61889,3818.4,3818.2,1.36546408]
[1717746550354,2.61889,3818.4,3818.1,0.54824072]
[1717746550581,2.61889,3818.4,3818.2,1.3654518]
[1717746550783,2.61889,3818.4,3818.1,0.54824072]
[1717746550972,2.61889,3818.4,3818.2,1.36545896]
[1717746551160,2.61889,3818.4,3818.0,1.32824072]
[1717746551356,2.61889,3818.4,3818.1,1.91370824]
[1717746551684,2.61889,3818.4,3818.2,1.36546752]
[1717746551924,2.61889,3818.4,3818.3,1.36546752]
[1717746552133,3.16889,3818.4,3818.3,1.36546752]
[1717746559044,3.16889,3818.4,3818.3,1.91370824]
[1717746559543,3.16889,3818.4,3818.3,1.36546752]
[1717746559717,3.16889,3818.4,3818.3,1.91370824]
[1717746561210,3.16889,3818.4,3818.3,1.36546752]
[1717746563221,3.16889,3818.4,3818.3,4.00999441]
[1717746564348,3.16889,3818.4,3818.3,3.18601625]
[1717746564815,3.16889,3818.4,3818.3,4.00987269]
[1717746565926,3.16889,3818.4,3818.3,3.18601625]
[1717746566310,2.61889,3818.4,3818.3,3.18601625]
[1717746567145,2.61889,3818.4,3818.3,1.82054873]
[1717746567349,2.61889,3818.4,3818.3,3.18594915]
[1717746571536,2.61889,3818.4,3818.3,3.18593689]
[1717746572257,2.61889,3818.4,3818.3,4.28516228]
[1717746572558,2.61889,3818.4,3818.3,3.18593689]
[1717746572759,2.61889,3818.4,3818.3,3.18593871]
[1717746572936,2.61889,3818.4,3818.3,4.2851641]
[1717746573862,2.61889,3818.4,3818.3,3.18593871]
[1717746574062,2.61889,3818.4,3818.3,4.2851637]
[1717746581232,3.430779,3818.4,3818.3,3.18593831]
[1717746581570,3.430779,3818.4,3818.3,1.91531632]
[1717746581571,5.808679,3818.4,3818.3,1.91531632]
[1717746581750,5.808679,3818.4,3818.3,1.36538958]
[1717746581949,6.37482846,3818.4,3818.3,1.36538958]
[1717746582448,7.12482846,3818.4,3818.3,1.36538958]
[1717746582653,4.74692846,3818.4,3818.0,0.54992674]
[1717746582839,4.86993,3818.2,3818.1,1.91557476]
[1717746583040,5.41993,3818.2,3818.1,1.91557476]
[1717746583237,5.41993,3818.2,3818.1,1.36564802]
[1717746583631,5.98607946,3818.2,3818.1,1.36564802]
[1717746583831,2.61917,3818.0,3817.7,0.54992674]
[1717746584136,3.73517946,3818.2,3817.6,0.54992674]
[1717746584137,2.6193,3817.8,3817.6,0.54992674]
[1717746584339,0.55,3817.7,3817.6,0.54992674]
[1717746584534,0.55,3817.7,3817.6,1.91570671]
[1717746585358,0.55,3817.7,3817.6,1.36577997]
[1717746587868,2.61944,3817.6,3817.4,0.54992674]
[1717746588166,2.61944,3817.6,3817.2,0.82486412]
[1717746588167,4.93138,3817.4,3817.3,0.54992674]
[1717746588472,3.16958,3817.4,3817.3,1.9157712]
[1717746590384,3.16958,3817.4,3817.3,1.36584446]
[1717746592239,3.16958,3817.4,3817.1,0.54992674]
[1717746592443,3.16958,3817.4,3817.2,1.3658641]
[1717746592640,3.16958,3817.4,3817.1,0.54992674]
[1717746592871,3.16958,3817.4,3817.2,1.36586409]
[1717746593080,3.16958,3817.4,3817.1,0.54992674]
[1717746593259,3.16958,3817.4,3817.2,1.36586035]
[1717746593583,3.16958,3817.4,3817.0,1.32992674]
[1717746593783,3.16958,3817.4,3817.1,1.36586018]
[1717746593988,3.16958,3817.4,3817.2,1.36586018]
[1717746594142,3.16958,3817.4,3817.0,1.32992674]
[1717746594488,3.16958,3817.4,3817.1,1.36585847]
[1717746594645,3.16958,3817.4,3817.2,1.36585847]
[1717746594844,3.16958,3817.4,3817.0,0.54992674]
[1717746595139,3.16958,3817.4,3817.1,1.3658416]
[1717746595355,3.16958,3817.4,3817.2,1.3658416]
[1717746595555,3.16958,3817.4,3817.0,0.54992674]
[1717746595756,3.16958,3817.4,3817.1,1.36584146]
[1717746595955,3.16958,3817.4,3817.2,1.36584146]
[1717746596180,3.16958,3817.4,3817.0,0.54992674]
[1717746596386,3.16958,3817.4,3817.1,1.36583818]
[1717746596583,3.16958,3817.4,3817.2,1.36583818]
[1717746596746,3.16958,3817.4,3817.0,0.54992674]
[1717746596956,3.16958,3817.4,3817.1,1.3658199]
[1717746597286,3.16958,3817.4,3817.2,1.3658199]
[1717746597458,3.16958,3817.4,3817.0,0.54992674]
[1717746597794,3.16958,3817.4,3817.1,1.36581966]
[1717746597956,3.16958,3817.4,3817.2,1.36581966]
[1717746598156,3.16958,3817.4,3817.0,0.54992674]
[1717746598353,3.16958,3817.4,3817.1,1.36582259]
[1717746598556,3.16958,3817.4,3817.2,1.36582259]
[1717746598769,3.16958,3817.4,3817.0,0.54992674]
[1717746599178,3.16958,3817.4,3817.1,1.36582187]
[1717746599375,3.16958,3817.4,3817.2,1.36582187]
[1717746599584,3.16958,3817.4,3817.0,0.54992674]
[1717746599795,3.16958,3817.4,3817.1,1.36582239]
[1717746600099,3.16958,3817.4,3817.2,1.36582239]
[1717746600287,3.16958,3817.4,3817.0,0.54992674]
[1717746600459,2.61958,3817.4,3817.0,0.54992674]
[1717746600797,2.61958,3817.4,3817.1,1.3658222]
[1717746600959,2.61958,3817.4,3817.2,1.3658222]
[1717746601297,2.61958,3817.4,3817.0,0.54992674]
[1717746601599,2.61958,3817.4,3817.1,1.36581799]
[1717746601802,2.61958,3817.4,3817.2,1.36581799]
[1717746602092,2.61958,3817.4,3817.1,0.78]
[1717746602258,2.61958,3817.4,3817.1,3.25057909]
[1717746602461,2.61958,3817.4,3817.2,1.36581694]
[1717746602660,2.61958,3817.4,3817.1,3.25057909]
[1717746602969,2.61958,3817.4,3817.2,1.36581653]
[1717746603164,2.61958,3817.4,3817.1,3.25057909]
[1717746603376,2.61958,3817.4,3817.2,1.36581666]
[1717746603577,2.61958,3817.4,3817.1,3.25057909]
[1717746603865,2.61958,3817.4,3817.2,1.36581655]
[1717746604090,2.61958,3817.4,3817.1,3.25057909]
[1717746604369,2.61958,3817.4,3817.2,1.74586704]
[1717746604681,2.61958,3817.4,3817.3,0.78]
[1717746605059,2.61958,3817.4,3817.3,2.69562949]
[1717746605397,2.61958,3817.4,3817.3,2.14570275]
[1717746606403,2.61958,3817.4,3817.3,4.50500275]
[1717746606765,2.61958,3817.4,3817.3,4.8486456]
[1717746607100,2.61958,3817.4,3817.3,2.4893456]
[1717746612303,2.61958,3817.4,3817.3,3.03927234]
[1717746617312,2.61958,3817.4,3817.3,2.69562949]
[1717746618410,2.61958,3817.4,3817.3,2.14570275]
[1717746619934,2.61958,3817.4,3817.3,4.78975107]
[1717746620319,2.61958,3817.4,3817.3,3.96658328]
[1717746622341,2.61958,3817.4,3817.3,5.06580867]
[1717746624242,2.61958,3817.4,3817.3,3.96658328]
[1717746624930,2.61934,3817.8,3817.3,3.96658328]
[1717746625131,2.61934,3817.8,3817.7,0.54929241]
[1717746625341,4.89844,3817.8,3817.7,1.36570275]
[1717746626334,4.89844,3817.8,3817.7,4.01051227]
[1717746626644,4.89844,3817.8,3817.7,4.01045514]
[1717746626947,4.89844,3817.8,3817.7,4.01044524]
[1717746627161,2.61934,3817.8,3817.7,4.01044524]
[1717746627359,2.61934,3817.8,3817.7,3.18650662]
[1717746628121,0.56628927,3818.0,3817.7,5.06509145]
[1717746628328,2.61924,3817.9,3817.8,4.28509145]
[1717746628530,2.61924,3817.9,3817.8,3.18650662]
[1717746628770,2.61924,3817.9,3817.8,4.28595539]
[1717746629065,2.61924,3817.9,3817.8,4.01097379]
[1717746630945,2.61924,3817.9,3817.8,1.36551688]
[1717746631347,2.61924,3817.9,3817.8,4.01094655]
[1717746631875,6.93529407,3817.9,3817.8,4.01094655]
[1717746632068,7.50149478,3817.9,3817.8,1.36551688]
[1717746632636,5.64954071,3817.9,3817.8,1.36551688]
[1717746632830,5.08334,3817.9,3817.8,1.36551688]
[1717746633575,5.08334,3817.9,3817.8,1.91522996]
[1717746635171,4.98184,3817.9,3817.8,1.91522996]
[1717746635467,6.31184,3817.9,3817.8,1.36551688]
[1717746635771,9.05284478,3817.9,3817.8,1.36551688]
[1717746637574,8.27284478,3817.9,3817.8,1.36551688]
[1717746639870,9.12044478,3817.9,3817.8,1.36575889]
[1717746640339,8.34054834,3817.9,3817.5,0.54971308]
[1717746640546,2.61937,3817.7,3817.6,1.36581303]
[1717746640951,2.61937,3817.7,3817.6,1.91552611]
[1717746640952,3.16937,3817.7,3817.6,1.91552611]
[1717746641674,3.16937,3817.7,3817.6,1.36581303]
[1717746641844,3.16937,3817.7,3817.6,1.36576533]
[1717746642193,2.61937,3817.7,3817.6,4.01133196]
[1717746642475,2.61937,3817.7,3817.6,4.28619472]
[1717746642674,2.61937,3817.7,3817.6,4.28607841]
[1717746643780,2.61937,3817.7,3817.6,3.18662964]
[1717746644382,2.61937,3817.7,3817.6,4.01155017]
[1717746644958,2.61937,3817.7,3817.6,1.36564902]
[1717746646796,2.61937,3817.7,3817.6,4.0115882]
[1717746650206,2.61937,3817.7,3817.6,4.01168885]
[1717746650499,2.61937,3817.7,3817.6,3.18676832]
[1717746651009,2.61937,3817.7,3817.6,4.28621709]
[1717746651368,2.61937,3817.7,3817.6,3.18676832]
[1717746651881,2.61937,3817.7,3817.6,4.28621709]
[1717746655409,2.61937,3817.7,3817.6,3.18676832]
[1717746656514,2.61937,3817.7,3817.6,4.28621709]
[1717746657290,2.61937,3817.7,3817.6,3.18676832]
[1717746659513,2.61937,3817.7,3817.6,4.01184299]
[1717746659917,2.61937,3817.7,3817.6,3.18676832]
[1717746660289,2.61937,3817.7,3817.6,4.01181825]
[1717746660490,5.06727,3817.7,3817.6,4.01181825]
[1717746660907,5.06727,3817.7,3817.6,4.01178762]
[1717746661424,5.06727,3817.7,3817.6,1.36574967]
[1717746663133,5.06727,3817.7,3817.6,1.36578064]
[1717746669785,5.06727,3817.7,3817.6,1.91581164]
[1717746669786,5.63062792,3817.7,3817.6,1.91581164]
[1717746669990,6.18062792,3817.7,3817.6,1.91581164]
[1717746670191,7.49693712,3817.7,3817.6,1.36578064]
[1717746670889,7.31713712,3817.7,3817.6,1.36578064]
[1717746671628,8.09713712,3817.7,3817.6,1.36578064]
[1717746673386,8.09713712,3817.7,3817.6,1.3658454]
[1717746674033,8.0971664,3817.7,3817.6,1.3658454]
[1717746674819,8.0971664,3817.7,3817.6,1.36585131]
[1717746677638,7.3171664,3817.7,3817.6,1.36585131]
[1717746677932,8.0971664,3817.7,3817.4,0.550031]
[1717746678138,2.61951,3817.5,3817.4,0.550031]
[1717746678369,2.61951,3817.5,3817.4,1.91590199]
[1717746678650,3.16951,3817.5,3817.4,1.91590199]
[1717746680939,3.16951,3817.5,3817.4,1.36587099]
[1717746683144,5.58191,3817.5,3817.4,1.36587099]
[1717746683347,7.1882351,3817.5,3817.4,1.36587099]
[1717746683563,7.75459746,3817.5,3817.4,1.36590673]
[1717746690964,7.75459746,3817.5,3817.2,0.550031]
[1717746691262,2.61965,3817.3,3817.2,0.550031]
[1717746691478,2.61965,3817.3,3817.2,1.91595366]
[1717746691763,3.16965,3817.3,3817.2,1.91595366]
[1717746691934,3.16965,3817.3,3817.2,1.36592266]
[1717746693136,3.16965,3817.3,3817.1,0.550031]
[1717746693336,3.16965,3817.3,3817.2,1.36595906]
[1717746695584,3.94812458,3817.3,3817.2,1.36595906]
[1717746696893,3.94812458,3817.3,3817.2,1.36598237]
[1717746697266,3.94812458,3817.3,3817.0,0.550031]
[1717746697493,3.94812458,3817.3,3817.1,1.3659827]
[1717746697651,3.94812458,3817.3,3817.2,1.3659827]
[1717746699350,3.16965,3817.3,3817.2,1.3659827]
[1717746703782,2.61965,3817.3,3817.2,1.3659827]
[1717746703985,3.16965,3817.3,3817.2,1.9160137]
[1717746704386,3.16965,3817.3,3817.2,4.01218175]
[1717746705715,2.61965,3817.3,3817.2,4.01218175]
[1717746710272,2.61965,3817.3,3817.2,3.18699529]
[1717746710795,2.61965,3817.3,3817.2,4.28644406]
[1717746712171,2.61965,3817.3,3817.2,5.06644406]
[1717746712579,2.61965,3817.3,3817.2,5.34169115]
[1717746714421,2.61965,3817.3,3817.2,5.34136933]
[1717746715980,2.61965,3817.3,3817.2,3.96686878]
[1717746716366,2.61965,3817.3,3817.2,5.34136933]
[1717746717138,2.61965,3817.3,3817.2,4.56136933]
[1717746717269,2.61965,3817.3,3817.2,3.18686878]
[1717746717466,2.61965,3817.3,3817.2,3.18689148]
[1717746717909,2.61965,3817.3,3817.2,4.28642704]
[1717746719373,2.61965,3817.3,3817.2,4.01157381]
[1717746720109,2.61965,3817.3,3817.2,3.18689148]
[1717746720514,2.61965,3817.3,3817.2,4.01159787]
[1717746721304,2.61965,3817.3,3817.2,1.36574236]
[1717746721886,2.61965,3817.3,3817.2,4.01165337]
[1717746723415,2.61965,3817.3,3817.2,1.36574236]
[1717746724123,2.61965,3817.3,3817.2,1.91561392]
[1717746726426,2.61965,3817.3,3817.2,4.01161928]
[1717746729035,2.61965,3817.3,3817.2,1.36574236]
[1717746730409,2.61965,3817.3,3817.2,4.01163112]
[1717746733903,2.61965,3817.3,3817.2,3.18692473]
[1717746734837,2.61965,3817.3,3817.2,4.01151721]
[1717746739042,2.61965,3817.3,3817.2,3.18692473]
[1717746739203,2.61965,3817.3,3817.2,3.96692473]
[1717746739405,2.61965,3817.3,3817.2,3.18692473]
[1717746739842,2.61965,3817.3,3817.2,4.2861164]
[1717746740855,2.61965,3817.3,3817.2,3.18692473]
[1717746741342,2.61965,3817.3,3817.2,4.2861164]
[1717746741902,2.61965,3817.3,3817.2,4.01149252]
[1717746747255,2.61965,3817.3,3817.2,3.18692473]
[1717746747459,2.61965,3817.3,3817.2,4.01180885]
[1717746751030,2.61965,3817.3,3817.2,3.18692473]
[1717746752553,2.61965,3817.3,3817.2,4.2861164]
[1717746757164,2.61965,3817.3,3817.2,3.18692473]
[1717746757359,2.61965,3817.3,3817.2,4.28693508]
[1717746757857,2.61965,3817.3,3817.2,3.18692473]
[1717746758472,2.61965,3817.3,3817.2,4.56134418]
[1717746759978,2.61965,3817.3,3817.2,3.18692473]
[1717746760840,2.61965,3817.3,3817.2,4.56134418]
[1717746765768,2.61965,3817.3,3817.2,3.18692473]
[1717746766293,2.61965,3817.3,3817.2,4.56134418]
[1717746767395,2.61965,3817.3,3817.2,4.28688016]
[1717746767855,2.61965,3817.3,3817.2,3.18692473]
[1717746768777,2.61965,3817.3,3817.2,4.2868689]
[1717746768981,2.61965,3817.3,3817.2,3.18692473]
[1717746769380,2.61965,3817.3,3817.2,4.56134418]
[1717746771988,2.61965,3817.3,3817.2,3.18692473]
[1717746772408,2.61965,3817.3,3817.2,4.56134418]
[1717746773273,2.61965,3817.3,3817.2,3.18692473]
[1717746774205,2.61939,3817.7,3817.3,2.3983]
[1717746774514,2.61939,3817.7,3817.6,2.15431022]
[1717746774828,2.61939,3817.7,3817.6,5.34123495]
[1717746775514,2.61939,3817.7,3817.6,3.96692473]
[1717746777310,2.61939,3817.7,3817.6,5.06600046]
[1717746778215,2.61939,3817.7,3817.6,3.96692473]
[1717746779008,2.61939,3817.7,3817.6,5.34040192]
[1717746779800,2.61939,3817.7,3817.6,3.96692473]
[1717746780313,2.61939,3817.7,3817.6,4.56040192]
[1717746780518,2.61939,3817.7,3817.6,5.34040192]
[1717746781609,2.61939,3817.7,3817.6,3.96692473]
[1717746781908,2.61939,3817.7,3817.6,5.34040192]
[1717746782773,2.61913,3818.1,3817.6,5.34040192]
[1717746782973,2.61913,3818.1,3817.9,0.8237586]
[1717746783175,2.61913,3818.1,3818.0,1.31767485]
[1717746783374,2.61913,3818.1,3818.0,1.86680395]
[1717746784012,2.61913,3818.1,3818.0,1.31767485]
[1717746784218,2.61913,3818.1,3818.0,1.86676647]
[1717746785381,2.61913,3818.1,3818.0,1.31767485]
[1717746785795,2.61913,3818.1,3818.0,1.86676647]
[1717746786917,2.61913,3818.1,3818.0,1.31767485]
[1717746790283,2.61913,3818.1,3818.0,1.86676647]
[1717746790509,2.61913,3818.1,3818.0,1.31767485]
[1717746790779,2.61913,3818.1,3818.0,3.96218409]
[1717746792381,2.61913,3818.1,3818.0,2.64450924]
[1717746793183,2.61913,3818.1,3818.0,4.0100265]
[1717746793378,2.61913,3818.1,3818.0,1.91444172]
[1717746794323,2.61913,3818.1,3818.0,1.36551726]
[1717746794528,2.61913,3818.1,3818.0,1.91443272]
[1717746794826,2.61913,3818.1,3818.0,1.36551726]
[1717746795728,2.61913,3818.1,3818.0,1.91444132]
[1717746797203,3.126983,3818.1,3818.0,1.91444132]
[1717746797406,3.126983,3818.1,3818.0,1.36551726]
[1717746797837,3.126983,3818.1,3818.0,1.91444132]
[1717746798218,3.126983,3818.1,3818.0,1.36551726]
[1717746799448,3.126983,3818.1,3818.0,1.91444132]
[1717746800050,3.126983,3818.1,3818.0,1.36551726]
[1717746800258,3.126983,3818.1,3818.0,1.91444132]
[1717746801457,3.126983,3818.1,3818.0,1.36551726]
[1717746801627,5.568983,3818.1,3818.0,1.36551726]
[1717746803119,6.13522593,3818.1,3818.0,1.36551726]
[1717746803319,5.568983,3818.1,3818.0,1.36551726]
[1717746807817,5.568983,3818.1,3818.0,1.91444132]
[1717746808054,5.568983,3818.1,3818.0,1.36551726]
[1717746808274,5.568983,3818.1,3818.0,1.91444132]
[1717746808470,5.568983,3818.1,3818.0,1.36551726]
[1717746808826,5.568983,3818.1,3818.0,1.91444132]
[1717746809659,5.568983,3818.1,3818.0,1.36551726]
[1717746809826,5.568983,3818.1,3818.0,1.91485654]
[1717746811662,5.568983,3818.1,3818.0,1.9149891]
[1717746813257,6.13523883,3818.1,3818.0,1.9149891]
[1717746813667,5.568983,3818.1,3818.0,1.9149891]
[1717746813826,5.568983,3818.1,3818.0,1.36564982]
[1717746814163,5.568983,3818.1,3818.0,1.9149891]
[1717746815327,6.13523883,3818.1,3818.0,1.36564982]
[1717746815564,5.568983,3818.1,3818.0,1.36564982]
[1717746816261,5.568983,3818.1,3818.0,1.9149891]
[1717746822431,6.13523883,3818.1,3818.0,1.9149891]
[1717746822844,5.568983,3818.1,3818.0,1.9149891]
[1717746823073,6.13523883,3818.1,3818.0,1.9149891]
[1717746823280,5.568983,3818.1,3818.0,1.9149891]
[1717746823481,6.13523883,3818.1,3818.0,1.9149891]
[1717746823686,5.568983,3818.1,3818.0,1.9149891]
[1717746823983,6.13523883,3818.1,3818.0,1.9149891]
[1717746824779,5.568983,3818.1,3818.0,1.9149891]
[1717746824974,6.13523883,3818.1,3818.0,1.9149891]
[1717746825163,5.568983,3818.1,3818.0,1.9149891]
[1717746825369,6.13523883,3818.1,3818.0,1.9149891]
[1717746825555,5.568983,3818.1,3818.0,1.9149891]
[1717746825755,6.13523883,3818.1,3818.0,1.9149891]
[1717746825956,6.13523883,3818.1,3818.0,1.36564982]
[1717746826394,6.13523883,3818.1,3818.0,1.9149891]
[1717746827182,6.13523883,3818.1,3818.0,1.36564982]
[1717746829494,10.83436883,3818.1,3818.0,1.36564982]
[1717746829644,16.45349883,3818.1,3818.0,1.36564982]
[1717746829847,8.77323883,3818.1,3817.4,0.54933928]
[1717746830061,5.03924,3817.6,3817.5,1.36589905]
[1717746830293,5.60549583,3817.6,3817.5,1.36589905]
[1717746830471,6.15549583,3817.6,3817.2,0.54933928]
[1717746830671,2.61958,3817.4,3817.3,1.36597612]
[1717746831781,2.61958,3817.4,3817.3,1.36595194]
[1717746833294,2.61958,3817.4,3817.1,0.54933928]
[1717746833471,2.61958,3817.4,3817.2,1.36596164]
[1717746833673,2.61958,3817.4,3817.1,0.54933928]
[1717746833979,2.61958,3817.4,3817.2,1.36596164]
[1717746834174,3.52008758,3817.4,3817.0,0.54933928]
[1717746834377,3.52008758,3817.4,3817.1,1.36596215]
[1717746834701,3.52008758,3817.4,3817.2,1.36596215]
[1717746834858,3.52008758,3817.4,3817.0,0.54933928]
[1717746835194,3.52008758,3817.4,3817.1,1.36596179]
[1717746835499,3.52008758,3817.4,3817.2,1.36596179]
[1717746835797,3.52008758,3817.4,3817.0,0.54933928]
[1717746836165,3.52008758,3817.4,3817.1,1.36596238]
[1717746836366,3.52008758,3817.4,3817.0,0.54933928]
[1717746836686,3.52008758,3817.4,3817.1,1.36596213]
[1717746836887,3.52008758,3817.4,3817.0,0.54933928]
[1717746837068,3.52008758,3817.4,3817.1,1.36596202]
[1717746837276,3.52008758,3817.4,3817.0,0.54933928]
[1717746837494,2.61958,3817.4,3817.1,1.36596237]
[1717746837793,2.61958,3817.4,3817.0,0.54933928]
[1717746837994,2.61958,3817.4,3817.1,1.3659616]
[1717746838189,2.61985,3817.0,3816.9,0.54933928]
[1717746838422,2.61985,3817.0,3816.9,1.91530121]
[1717746840380,2.61985,3817.0,3816.9,1.36596193]
[1717746840576,2.61985,3817.0,3816.9,1.91530121]
[1717746845887,2.61985,3817.0,3816.9,1.36596193]
[1717746846332,2.61985,3817.0,3816.8,0.54933928]
[1717746846632,2.61985,3817.0,3816.9,1.91532956]
[1717746851906,2.61961,3817.4,3816.9,4.27562956]
[1717746852135,2.61961,3817.4,3817.0,1.91532956]
[1717746852307,2.61961,3817.4,3817.2,0.54933928]
[1717746852511,2.61961,3817.4,3817.3,1.36599028]
[1717746856641,5.04541,3817.4,3817.3,1.36599028]
[1717746856833,5.549951,3817.4,3816.9,0.54933928]
[1717746857304,5.549951,3817.4,3817.0,1.36596336]
[1717746857510,5.549951,3817.4,3817.1,1.36596336]
[1717746857809,5.549951,3817.4,3816.9,0.54933928]
[1717746858009,5.549951,3817.4,3817.0,1.36595899]
[1717746858349,2.61972,3817.2,3816.9,0.54933928]
[1717746858557,2.61972,3817.2,3817.0,1.36598734]
[1717746858733,2.61972,3817.2,3816.9,0.54933928]